Cogmind - Beta 11 @@@ ROGUE MODE // 2022.04.12 @ 04:26:17 Player: Rainynight Result: Self-destructed Performance ------------- Evolutions (1) 500 Regions Visited (5) 1000 Robots Destroyed (46) 230 Value Destroyed (846) 846 Prototype IDs (23) 460 Alien Tech Used (0) 0 Bonus (388) 388 TOTAL SCORE: 3424 Bonus ------- High Alert Combat Kills 4 Follower Combat Kills 98 Aligned with FarCom 300 Friendly Fire -14 Cogmind --------- Core Integrity 133/400 Matter 268/300 Energy 56/100 System Corruption 0% Temperature Cool (0) Movement Flying (200) Ox2 Location -9/Exiles Parts ------- > --- POWER (1) -------- (None) > --- PROPULSION (2) --- Flight Unit > --- UTILITY (4) ------ Improved Terrain Scan Processor > --- WEAPON (2) ------- Latent Energy Streamer > --- INVENTORY (5) ---- Titanium Leg Flight Unit Medium Storage Unit Improved Terrain Scan Processor Improved Terrain Scan Processor Peak State ------------ > --- POWER ------------ Deuterium Engine > --- PROPULSION ------- Light Treads Light Treads > --- UTILITY ---------- Cooling System Medium Storage Unit Improved Terrain Scanner Improved Terrain Scan Processor > --- WEAPON ----------- Heavy Assault Rifle Field Lobotomy Kit > --- INVENTORY -------- Deuterium Engine Titanium Leg Flight Unit Flight Unit Flight Unit Flight Unit Medium Storage Unit Improved Terrain Scanner Improved Terrain Scan Processor Improved Terrain Scan Processor [Rating: 28] Favorites ----------- Power Improved Ion Engine Engine Improved Ion Engine Propulsion Light Treads Treads Light Treads Leg Titanium Leg Flight Unit Flight Unit Utility Improved Terrain Scanner Device Improved Terrain Scanner Storage Small Storage Unit Processor Improved Terrain Scan Processor Weapon Heavy Assault Rifle Energy Gun Small Laser Energy Cannon Latent Energy Streamer Ballistic Gun Heavy Assault Rifle Ballistic Cannon Light Cannon Special Weapon Field Lobotomy Kit Special Melee Weapon Datajack Build | -11 -10 -10 -9 -9 -9 ------- Run | Scr Mat Min Mat Min Exi Slots Evolved 2 | . . . 2 . . Power . | . . . . . . Propulsion . | . . . . . . Utility 2 | . . . 2 . . Weapon . | . . . . . . Parts Attached 52 | . 13 8 24 1 6 Power 5 | . 1 1 3 . . Engine 5 | . 1 1 3 . . Core . | . . . . . . Reactor . | . . . . . . Propulsion 12 | . 3 1 5 . 3 Treads 6 | . 2 1 3 . . Leg 3 | . 1 . 2 . . Wheel . | . . . . . . Hover . | . . . . . . Flight 3 | . . . . . 3 Utility 15 | . 1 4 9 . 1 Device 8 | . . 3 5 . . Storage 4 | . . 1 2 . 1 Processor 3 | . 1 . 2 . . Hackware . | . . . . . . Protection . | . . . . . . Artifact . | . . . . . . Weapon 20 | . 8 2 7 1 2 Energy Gun 3 | . 3 . . . . Energy Cannon 1 | . . . . . 1 Ballistic Gun 12 | . 2 2 7 1 . Ballistic Cannon 2 | . 2 . . . . Launcher . | . . . . . . Special Weapon 1 | . . . . . 1 Impact Weapon . | . . . . . . Slashing Weapon . | . . . . . . Piercing Weapon . | . . . . . . Special Melee Weapon 1 | . 1 . . . . Unidentified Prototypes . | . . . . . . Parts Lost 13 | . 3 . 2 . 8 Power 2 | . 1 . . . 1 Propulsion 6 | . 1 . 1 . 4 Utility 3 | . . . 1 . 2 Weapon 2 | . 1 . . . 1 Highest Loss Streak 8 | . 2 . 1 . 8 To Critical Strikes 3 | . . . . . 3 Average Slot Usage (%) 95 | . 79 99 95 100 94 Engine 12 | . 11 14 10 11 10 Treads 20 | . 14 28 8 22 20 Leg 4 | . 11 . 12 . . Device 16 | . . 13 28 22 21 Storage 12 | . 14 14 11 11 10 Processor 2 | . . . 2 11 11 Energy Gun 1 | . 11 . . . . Ballistic Gun 20 | . 6 24 21 22 17 Ballistic Cannon 2 | . 6 3 . . . Naked Turns . | . . . . . . Heaviest Build 33 | 12 15 19 28 26 33 Greatest Support 40 | 20 40 40 40 40 40 Greatest Overweight (x) 6 | . 1 . 1 . 6 Average Overweight (x) . | . . . . . . Largest Inventory Capacity 10 | . 8 8 10 10 10 Average Capacity 8 | . 8 8 9 10 9 Most Carried 10 | . 8 8 10 10 10 Average Carried 8 | . 7 7 9 10 9 Final Capacity 10 | 8 8 8 10 10 5 Final Carried 10 | 6 8 8 10 10 5 Class Distribution -------------------- 60% | Scavenger-Mutant 39% | Mutant Dominant Class ---------------- Mutant | -10/Materials Scavenger-Mutant | -10/Mines Mutant | -9/Materials Scavenger-Mutant | -9/Mines Scavenger-Mutant | -9/Exiles Resources | -11 -10 -10 -9 -9 -9 ----------- Run | Scr Mat Min Mat Min Exi Matter Collected 1440 | 200 246 406 512 76 . Remotely . | . . . . . . Salvage Created 1395 | . 317 351 686 41 . Parts 99 | . 16 23 55 5 . Haulers Intercepted . | . . . . . . Recyclers Shooed 6 | . 2 4 . . . Parts Field Recycled . | . . . . . . Retrieved Matter . | . . . . . . Parts Self-Destructed . | . . . . . . Prevented . | . . . . . . Kills | -11 -10 -10 -9 -9 -9 ------- Run | Scr Mat Min Mat Min Exi Combat Hostiles Destroyed 33 | . 7 6 17 3 . Guns 27 | . 5 2 17 3 . Cannons 6 | . 2 4 . . . Classes Destroyed 6 | . 3 1 2 . . Worker 3 | . . . 3 . . Tunneler 4 | . . 3 1 . . Recycler 6 | . 2 2 2 . . Swarmer 19 | . 3 2 11 3 . Grunt 10 | . 4 4 2 . . Sentry 4 | . . . 4 . . Best Kill Streak 11 | . 6 2 11 3 . Combat Bots Only 8 | . 5 2 8 3 . Max Kills in Single Turn 2 | . 1 2 2 1 . Gunslinging 1 | . . . 1 . . Exploded . | . . . . . . Melee . | . . . . . . Uniques/NPCs Destroyed . | . . . . . . Combat | -11 -10 -10 -9 -9 -9 -------- Run | Scr Mat Min Mat Min Exi Damage Taken 2419 | . 642 334 630 89 724 Core 402 | . 106 29 56 9 202 Absorbed by Shields 163 | . . . 163 . . Core Remaining (%) 73 | 100 . 46 . . . Volleys Fired 157 | . 42 52 48 6 9 Largest 2 | . 2 2 2 2 1 Hottest 80 | . 80 58 46 43 23 Shots Fired 298 | . 77 104 96 12 9 Gun 237 | . 57 68 96 12 4 Cannon 56 | . 20 36 . . . Launcher . | . . . . . . Special 5 | . . . . . 5 Kinetic 237 | . 21 104 96 12 4 Thermal 56 | . 56 . . . . Explosive . | . . . . . . Electromagnetic . | . . . . . . Robot Hit Streak 13 | . 4 9 13 3 8 Robot Miss Streak 6 | . 6 3 4 2 1 Penetration Max . | . . . . . . Secondary Targets 5 | . 1 . 2 2 . Max Gunslinging Chain 1 | . 1 . 1 1 . Shots Hit Robots 192 | . 52 60 66 7 7 Core Hits 66 | . 15 17 29 4 1 Critical Kills . | . . . . . . Critical Parts Destroyed 1 | . . . 1 . . Critical Strikes 2 | . . 1 1 . . Destroy 1 | . . . 1 . . Blast 1 | . . 1 . . . Melee Attacks 18 | . 18 . . . . Impact . | . . . . . . Slashing . | . . . . . . Piercing . | . . . . . . Sneak Attacks 1 | . 1 . . . . Combat Hostiles . | . . . . . . Follow-up Attacks . | . . . . . . Damage Inflicted 2436 | . 440 807 1089 67 33 Guns 1884 | . 304 459 1021 67 33 Cannons 484 | . 136 348 . . . Explosions 63 | . . . 63 . . Melee . | . . . . . . Ramming 5 | . . . 5 . . Kinetic 2071 | . 143 807 1021 67 33 Thermal 360 | . 297 . 63 . . Explosive . | . . . . . . Electromagnetic . | . . . . . . Impact . | . . . . . . Slashing . | . . . . . . Piercing . | . . . . . . Highest Corruption . | . . . . . . Average Corruption . | . . . . . . Corruption Purged . | . . . . . . Corruption Blocked . | . . . . . . Overload Shots . | . . . . . . Overflow Damage 63 | . . 4 59 . . Projectiles 4 | . . 4 . . . Explosions 59 | . . . 59 . . Melee . | . . . . . . Knockbacks 9 | . 3 6 . . . Impact . | . . . . . . Kinetic 9 | . 3 6 . . . Secondary . | . . . . . . Self-Inflicted Damage 111 | . . . 111 . . Shots 1 | . . . 1 . . Rammed 1 | . . . 1 . . Targets Rammed 1 | . . . 1 . . Kicked . | . . . . . . Crushed . | . . . . . . Highest Temperature 464 | . 464 95 . . . Average Temperature 152 | . 225 29 . . . Received Heat Transfer 665 | . 192 192 81 . 200 Effects 7 | . 7 . . . . Shutdowns 1 | . 1 . . . . Matter Decay 2 | . 2 . . . . Short Circuit 1 | . 1 . . . . Damage (major) 3 | . 3 . . . . Siege Activations . | . . . . . . Robots Corrupted . | . . . . . . Combat Hostiles . | . . . . . . Parts Fried . | . . . . . . Impact Corruptions . | . . . . . . Robots Melted . | . . . . . . Combat Hostiles . | . . . . . . Parts Melted . | . . . . . . Heat Transferred 725 | . 675 . 50 . . Parts Sabotaged . | . . . . . . Parts Stolen . | . . . . . . Parts Stripped . | . . . . . . Power Chain Reactions . | . . . . . . Missiles Intercepted . | . . . . . . Alert | -11 -10 -10 -9 -9 -9 ------- Run | Scr Mat Min Mat Min Exi Peak Influence 454 | . 195 118 454 247 . Initial 177 | . . . . 177 . Average 90 | . 102 29 166 195 . Maximum Alert Level 2 | . . . 2 1 . Low Security (%) 89 | . 100 100 67 72 . Level 1 8 | . . . 23 27 . Level 2 2 | . . . 9 . . Level 3 . | . . . . . . Level 4 . | . . . . . . Level 5 . | . . . . . . High Security . | . . . . . . Max Security . | . . . . . . Squads Dispatched 2 | . 1 . 1 . . Investigation . | . . . . . . Extermination . | . . . . . . Reinforcement 2 | . 1 . 1 . . Assault . | . . . . . . Garrison . | . . . . . . Intercept . | . . . . . . Searches Triggered . | . . . . . . Construction Impeded . | . . . . . . Haulers Reinforced . | . . . . . . Active Scanning Responses . | . . . . . . Cargo Convoy Interrupts . | . . . . . . Stealth | -11 -10 -10 -9 -9 -9 --------- Run | Scr Mat Min Mat Min Exi Distress Signals 4 | . 1 . 3 . . Communications Jammed . | . . . . . . Distress Signals . | . . . . . . Times Spotted 56 | . 14 9 22 3 8 Peak Tracking Total 9 | . 4 3 4 3 9 Tactical Retreats 2 | . 1 1 . . . Traps | -11 -10 -10 -9 -9 -9 ------- Run | Scr Mat Min Mat Min Exi Traps Triggered 2 | . . . 2 . . Indirectly . | . . . . . . Trap Hack Attempts . | . . . . . . Triggered . | . . . . . . Disarmed . | . . . . . . Reprogrammed . | . . . . . . Reused . | . . . . . . Traps Extracted . | . . . . . . Installed . | . . . . . . Triggered . | . . . . . . Machines | -11 -10 -10 -9 -9 -9 ---------- Run | Scr Mat Min Mat Min Exi Machines Disabled 3 | . . . 3 . . Max in Single Turn 1 | . . . 1 . . Machines Sabotaged . | . . . . . . Garrisons Compromised . | . . . . . . Overloaded Fab Kills . | . . . . . . Hacking | -11 -10 -10 -9 -9 -9 --------- Run | Scr Mat Min Mat Min Exi Machines Accessed 6 | . . . 2 . 4 Terminals 2 | . . . 2 . . Fabricators . | . . . . . . Repair Stations . | . . . . . . Recycling Units . | . . . . . . Scanalyzers . | . . . . . . Garrison Access . | . . . . . . Total Hacks 29 | . . . 2 . 27 Successful 28 | . . . 1 . 27 Failed 1 | . . . 1 . . Catastrophic . | . . . . . . Database Lockouts . | . . . . . . Manual 2 | . . . 1 . 1 Terminals 2 | . . . 2 . . Fabricators . | . . . . . . Repair Stations . | . . . . . . Recycling Units . | . . . . . . Scanalyzers . | . . . . . . Garrison Access . | . . . . . . Terminal Hacks 28 | . . . 1 . 27 Record 26 | . . . . . 26 Locate Traps 1 | . . . 1 . . EX-Prototype ID Bank 1 | . . . . . 1 Fabricator Hacks . | . . . . . . Repair Station Hacks . | . . . . . . Recycling Unit Hacks . | . . . . . . Scanalyzer . | . . . . . . Garrison Access Hacks . | . . . . . . Unauthorized Hacks . | . . . . . . Terminals . | . . . . . . Fabricators . | . . . . . . Repair Stations . | . . . . . . Recycling Units . | . . . . . . Scanalyzers . | . . . . . . Garrison Access . | . . . . . . Data Cores Recovered . | . . . . . . Used . | . . . . . . Hacking Detections 1 | . . . 1 . . Full Trace Events . | . . . . . . Feedback Events . | . . . . . . Feedback Blocked . | . . . . . . Robot Schematics Acquired . | . . . . . . Robots Built . | . . . . . . Authchips . | . . . . . . Time . | . . . . . . Total Robot Build Rating . | . . . . . . Part Schematics Acquired . | . . . . . . Parts Built . | . . . . . . Authchips . | . . . . . . Time . | . . . . . . Total Part Build Rating . | . . . . . . Parts Repaired . | . . . . . . Time . | . . . . . . Parts Recycled . | . . . . . . Recycled Matter . | . . . . . . Retrieved Matter . | . . . . . . Retrieved Components . | . . . . . . Parts Scanalyzed . | . . . . . . Part Schematics Acquired . | . . . . . . Parts Damaged . | . . . . . . Bothacking | -11 -10 -10 -9 -9 -9 ------------ Run | Scr Mat Min Mat Min Exi Used RIF Installer . | . . . . . . Robots Hacked 1 | . 1 . . . . Non-combat 1 | . 1 . . . . Combat . | . . . . . . Robot Hacks Applied 1 | . 1 . . . . no_distress 1 | . 1 . . . . Relay Couplers Released . | . . . . . . Fabnet Peak Effective % . | . . . . . . Robots Rewired . | . . . . . . Allies Hacked . | . . . . . . Hacks Repelled . | . . . . . . Allies | -11 -10 -10 -9 -9 -9 -------- Run | Scr Mat Min Mat Min Exi Total Allies 5 | . . 3 . . 2 Largest Group 3 | . . 3 3 . 2 Highest-Rated Group 40 | . . 40 40 . 17 Highest-Rated Ally 16 | . . 16 16 . 10 Total Orders . | . . . . . . Ally Attacks 36 | . . 3 28 . 5 Total Damage 511 | . . 29 319 . 163 Kills 7 | . . 1 4 . 2 Allies Corrupted . | . . . . . . Allies Melted 1 | . . 1 . . . Field Lobotomies 2 | . . . . . 2 Intel | -11 -10 -10 -9 -9 -9 ------- Run | Scr Mat Min Mat Min Exi Robot Analysis Total . | . . . . . . Derelict Logs Recovered 2 | . . 1 . 1 . Drone Launches . | . . . . . . Drone Recoveries . | . . . . . . Exploration | -11 -10 -10 -9 -9 -9 ------------- Run | Scr Mat Min Mat Min Exi Turns Passed 3635 | . 500 1668 724 398 345 Spaces Moved 1646 | 1 217 814 330 84 200 Core 2 | . . . . . 2 Treads 1378 | . 141 814 151 84 188 Legs 256 | 1 76 . 179 . . Wheels . | . . . . . . Hover . | . . . . . . Flight 10 | . . . . . 10 Fastest Speed 37 | 120 120 160 130 160 37 Average Speed 155 | 120 146 160 150 160 155 Slowest Speed 350 | 120 190 160 240 160 350 Overloaded Moves . | . . . . . . Propulsion Burnouts . | . . . . . . Robots Hopped . | . . . . . . Cave-ins Triggered . | . . . . . . Exploration Rate (%) 37 | 2 29 101 34 17 42 Regions Visited 5 Branch Regions 3 Pre-discovered Areas 1 | . . . . 1 . Known Exits Taken 1 | . . . 1 . . Unknown Exits Taken 4 | 1 1 1 . 1 . Scrap Searched 2 | . . 1 . 1 . Spaces Dug . | . . . . . . Terrain Destroyed 15 | . . . 15 . . Melee . | . . . . . . Projectile . | . . . . . . AOE 15 | . . . 15 . . Terrain Rammed . | . . . . . . Walls Destroyed . | . . . . . . Machines Disabled . | . . . . . . Actions | -11 -10 -10 -9 -9 -9 --------- Run | Scr Mat Min Mat Min Exi Total 2433 | . 315 1085 478 337 218 Wait 500 | . 12 197 45 246 . Move 1641 | . 216 813 329 83 200 Hop . | . . . . . . Pick Up 17 | . 3 4 10 . . Fast Attach 30 | . 6 2 16 . 6 Attach 2 | . 2 . . . . Detach 6 | . 5 . 1 . . Swap 20 | . 5 6 8 1 . Drop 41 | . 6 11 20 1 3 Fire 157 | . 42 52 48 6 9 Melee 18 | . 18 . . . . Ram . | . . . . . . Kick . | . . . . . . Crush 1 | . . . 1 . . Escape Stasis . | . . . . . . Rewire . | . . . . . . Trap . | . . . . . . Miscellaneous . | . . . . . . Route ------- -11/Scrapyard -10/Materials -10/Mines (discovered 2 exits: *Mat x2) -9/Materials (discovered 2 exits: [*Mat] / *Min) -9/Mines -9/Exiles History --------- Turn | Location | Event 1 | -11/Scrapyard | Discovered new exit (range 0) 1 | -11/Scrapyard | Entered Materials 330 | -10/Materials | Build established: Mutant 460 | -10/Materials | Discovered new exit (range 14) 501 | -10/Materials | Entered Mines 532 | -10/Mines | Met a Derelict bent on vengeance 708 | -10/Mines | Discovered new exit (range 12) 844 | -10/Mines | Core integrity fell below 50% 880 | -10/Mines | Learned location of 1 exit from Materials 880 | -10/Mines | Joined a pair of Derelicts in attacking an 0b10 outpost 1024 | -10/Mines | A weapon hastily lodged in a ceiling crevice suddenly fell to the ground 1199 | -10/Mines | Build established: Scavenger-Mutant 1381 | -10/Mines | Assisted by bots powering up and referring to "LRC-V3" 1407 | -10/Mines | Discovered new exit (range 8) 2169 | -10/Mines | Entered Materials 2169 | -9/Materials | Accompanied by 3 allies 2169 | -9/Materials | Evolved 2 slots: Utility x2 2170 | -9/Materials | Identified exit to Mines 2499 | -9/Materials | Discovered new exit (range 15) 2679 | -9/Materials | Destroyed 8 combat bots 2688 | -9/Materials | Build established: Mutant 2893 | -9/Materials | Entered Mines 3050 | -9/Mines | Learned Materials terminal intel 3096 | -9/Mines | Build established: Scavenger-Mutant 3258 | -9/Mines | Learned location of Storage (-9) 3270 | -9/Mines | Discovered new exit (range 13) 3283 | -9/Mines | Deemed a non-threat by the Exiles lab entrance 3291 | -9/Mines | Entered Exiles 3330 | -9/Exiles | Met 8R-AWN 3357 | -9/Exiles | Met EX-HEX 3403 | -9/Exiles | Met EX-BIN 3432 | -9/Exiles | Aligned with FarCom system 3434 | -9/Exiles | Given EX-Vault access code 3498 | -9/Exiles | Opened EX-Vault 3508 | -9/Exiles | Found Field Lobotomy Kit 3543 | -9/Exiles | Warned to stay clear of 0b10 Research branches 3555 | -9/Exiles | Attacked by the Exiles 3568 | -9/Exiles | Assimilated as-62780 with FLK Orb 3571 | -9/Exiles | Assimilated as-46156 with FLK Orb 3626 | -9/Exiles | Core integrity fell below 50% 3632 | -9/Exiles | Found Latent Energy Streamer 3636 | -9/Exiles | Self-destructed Last Messages --------------- 03619_ Imp. Terrain Scanner destroyed. 03621_ Cooling System destroyed. 03621_ Penetrated by HV Slug. 03621_ Critical hit (Destroy). 03621_ Deuterium Engine destroyed. 03623_ HV Slug penetrates as-97742. 03623_ Penetrated by HV Slug. 03624_ Acquired Flight Unit. 03625_ Dropped Med. Storage Unit. 03625_ Penetrated by HV Slug. 03625_ Flight Unit destroyed. 03626_ Acquired Flight Unit. 03630_ HV Slug penetrates as-97742. 03630_ HV Slug penetrates Wall. 03632_ Acquired Latent Energy Streamer. 03633_ Penetrated by HV Slug. 03633_ Flight Unit destroyed. 03633_ HV Slug penetrates as-97742. 03633_ as-97742 suffers critical hit (Destroy). 03636_ Penetrated by HV Slug. Map ----- +----------------------------------------------------+ | | | | | | | | | | | | | | | | | | | | | | | | | | | | | | | | | | | | | | | | | | | | | ??????????????#?????################?????????????? | | ??????????????##??#?#?# #?##?##?#??????????? | | ?????????????????#?#### #?#?#??#?###?#?????? | | ??????????#????#??#?#?# @[ ! ####?####?####?????? | | ??????????????#?####?## X####??##?###???????? | | ?????????????#??#??##### #####?###?##?#??????? | | ??????????????#########X ###???#???#??#?#????? | | ????????#?#?????####?### #???###?#?#?###?????? | | ????????????########?### #####?#?####?##?????? | | ??????????#???#?##?#?#?# ##########???##?????? | | ?????????????#?##??#??## ! ##""""""######??????? | | ??????????#??##?###??### !*## """##?####??#??? | | ?????????????########### X""####?#??????? | | ?????#?#?#??#???##?##?## ## """#####??#????? | | ??????##?#?????######### ##""""""####?##?????? | | ?????????????#?#""""""## ;############?##????? | | ?????????????#?#"""" ## a #####??#?###?#??????? | | ??????#??????###""X" ###########??#?##???? | | ???????????##?##" #######?#?##??##????? | | ????????????#?##" ## ###?##############??? | | ??????????????##""""""## ##############????##? | | ????#????????#?##"###### ###"""""""#####?????? | | ?????????????? "###### ###"""""""####?#?#?#? | | ????????????##""" ####?# ###"""""""#?##?#?#??? | | ???????????###"""?###### ###"" """"#?#?#???### | | ?????????????#"""?##?##" """"#???#?###?? | | ???????????####??######" """#####??#??? | | ????????#?????##?######" """##??#####?? | +----------------------------------------------------+ Best States ------------- Heat Dissipation 50 Energy Generation 14 Energy Capacity 275 Matter Stores 300 Matter Capacity 300 Sight Range 16 Terrain Scan Range 16 Terrain Scan Density 110 Evasion (%) 55 Recoil Reduction 2 Salvage Targeting 1 Item Schematics ----------------- None Robot Schematics ------------------ None Fabricated ------------ Nothing Alien Tech Used ----------------- None Achievements -------------- None Challenges ------------ None Game ------ Seed ScatterLauncherMediator Manual? 0 Play Time 00:24:38 Cumulative 71.0 hours Start 2022.04.12 @ 03:58:38 End 2022.04.12 @ 04:26:17 Sessions 1 Manual Loads 0 Difficulty Rogue Special Mode None Game No. 81 Rogue 81 Adventurer 0 Explorer 0 Win Type - Total 0 Types 0/0/0/0/0/0/0/0/0 Lore% 46 Gallery% 50 Achievement% 38 Wizard Run 0 Options --------- ASCII 1 Keyboard 1 Movement Numpad Keybinds 0 Fullscreen 1 Font 18/X11 Map View 76x50 Tactical HUD 1 Map Filters NONE Filters NONE Steam 1 RUN: 75a22dea-7f5c-4833-9dd9-698fe2caa532